bitfinex-derivatives/quotes_BNBF0:USTF0_20250715
["timestamp","ask_amount","ask_price","bid_price","bid_amount"]
[1752569638578,1.1166434,679.89,679.4,0.98955123]
[1752569638777,1.1166434,679.88,679.4,0.98955123]
[1752569639077,1.1166434,679.87,679.4,0.98955123]
[1752569639373,1.1166434,679.86,679.4,0.98955123]
[1752569639578,1.1166434,679.85,679.4,0.98955123]
[1752569639775,1.1166434,679.84,679.4,0.98955123]
[1752569639979,1.1166434,679.83,679.4,0.98955123]
[1752569640179,1.1166434,679.82,679.4,0.98955123]
[1752569640375,1.1166434,679.81,679.4,0.98955123]
[1752569640576,0.99152269,679.9,679.4,0.98955123]
[1752569640876,1.1166516,679.89,679.4,0.98955123]
[1752569641080,1.1166516,679.88,679.4,0.98955123]
[1752569641377,1.1166516,679.87,679.4,0.98955123]
[1752569641581,1.1166516,679.86,679.4,0.98955123]
[1752569641877,1.1166516,679.85,679.41,0.98955123]
[1752569642075,1.1166516,679.84,679.41,0.98955123]
[1752569642280,1.1166516,679.83,679.41,0.98955123]
[1752569642479,1.1166516,679.82,679.41,0.98955123]
[1752569642682,1.1166516,679.81,679.41,0.98955123]
[1752569642881,0.99152269,679.9,679.42,0.98955123]
[1752569643078,1.1166659,679.89,679.42,0.98955123]
[1752569643378,1.1166659,679.88,679.42,0.98955123]
[1752569643578,1.1166659,679.87,679.42,0.98955123]
[1752569643881,1.1166659,679.86,679.42,0.98955123]
[1752569644181,1.1166659,679.85,679.42,0.98955123]
[1752569644378,0.99152269,679.89,679.12,1.9766769]
[1752569644379,1.1166659,679.84,679.43,0.98955123]
[1752569644578,1.1166659,679.83,679.43,0.98955123]
[1752569644779,1.1166659,679.82,679.43,0.98955123]
[1752569644983,1.1166659,679.81,679.43,0.98955123]
[1752569645180,0.99152269,679.9,679.42,0.98955123]
[1752569645379,1.116656,679.89,679.42,0.98955123]
[1752569646179,0.99152269,679.9,679.42,0.98955123]
[1752569646383,1.1166716,679.89,679.42,0.98955123]
[1752569648085,1.1166716,679.88,679.43,0.98955123]
[1752569648985,1.1166716,679.88,679.4,0.98955123]
[1752569649286,1.1166716,679.87,679.4,0.98955123]
[1752569649484,1.1166716,679.86,679.4,0.98955123]
[1752569649688,1.1166716,679.85,679.4,0.98955123]
[1752569649984,1.1166716,679.84,679.4,0.98955123]
[1752569650284,1.1166716,679.83,679.4,0.98955123]
[1752569650487,0.99152269,679.93,679.4,0.98955123]
[1752569650688,1.116793,679.92,679.4,0.98955123]
[1752569650886,1.116793,679.91,679.4,0.98955123]
[1752569651085,1.116793,679.9,679.4,0.98955123]
[1752569651285,1.116793,679.89,679.41,0.98955123]
[1752569651484,1.116793,679.88,679.41,0.98955123]
[1752569651689,1.116793,679.87,679.41,0.98955123]
[1752569651885,1.116793,679.86,679.41,0.98955123]
[1752569652189,1.116793,679.85,679.41,0.98955123]
[1752569652389,1.116793,679.84,679.41,0.98955123]
[1752569652588,1.116793,679.83,679.41,0.98955123]
[1752569652789,1.116793,679.82,679.41,0.98955123]
[1752569652989,0.99152269,679.91,679.41,0.98955123]
[1752569653192,1.1167951,679.9,679.41,0.98955123]
[1752569653489,1.1167951,679.9,679.42,0.98955123]
[1752569655292,0.99152269,679.87,679.44,0.98955123]
[1752569655590,1.1168007,679.86,679.44,0.98955123]
[1752569655791,1.116805,679.85,679.44,0.98955123]
[1752569655991,1.116805,679.84,679.44,0.98955123]
[1752569656192,1.116805,679.83,679.44,0.98955123]
[1752569656489,1.116805,679.82,679.44,0.98955123]
[1752569656692,1.116805,679.81,679.44,0.98955123]
[1752569656888,1.116805,679.8,679.44,0.98955123]
[1752569657088,0.99152269,679.87,679.44,0.98955123]
[1752569657387,1.1168102,679.86,679.44,0.98955123]
[1752569657587,1.1168102,679.85,679.44,0.98955123]
[1752569657787,1.1168102,679.84,679.44,0.98955123]
[1752569657990,1.1168102,679.83,679.44,0.98955123]
[1752569658189,1.1168102,679.82,679.44,0.98955123]
[1752569658390,1.1168102,679.81,679.44,0.98955123]
[1752569658593,1.1168102,679.8,679.45,0.98955123]
[1752569658888,0.99152269,679.87,679.45,0.98955123]
[1752569659092,2.10834689,679.86,679.45,0.98955123]
[1752569659291,1.1168242,679.85,679.45,0.98955123]
[1752569660693,1.1168242,679.84,679.45,0.98955123]
[1752569660889,1.1168242,679.83,679.44,0.98955123]
[1752569661188,1.1168242,679.82,679.44,0.98955123]
[1752569661389,1.1168242,679.81,679.44,0.98955123]
[1752569661588,1.1168242,679.8,679.44,0.98955123]
[1752569661789,0.99152269,679.87,679.44,0.98955123]
[1752569661992,1.1171919,679.86,679.44,0.98955123]
[1752569663092,0.99152269,679.87,679.44,0.98955123]
[1752569663093,1.1171919,679.85,679.44,0.98955123]
[1752569663294,1.1171919,679.84,679.44,0.98955123]
[1752569663494,1.1171919,679.83,679.44,0.98955123]
[1752569663795,1.1171919,679.82,679.44,0.98955123]
[1752569663996,0.99152269,679.85,679.44,0.98955123]
[1752569664192,1.1172003,679.84,679.44,0.98955123]
[1752569664392,0.99152269,679.85,679.44,0.98955123]
[1752569664393,1.1172003,679.83,679.44,0.98955123]
[1752569664591,1.1172003,679.82,679.44,0.98955123]
[1752569664797,1.1172003,679.81,679.44,0.98955123]
[1752569664991,1.1172003,679.8,679.44,0.98955123]
[1752569665291,1.1172003,679.79,679.45,0.98955123]
[1752569665597,0.99152269,679.85,679.45,0.98955123]
[1752569665796,1.1172016,679.84,679.45,0.98955123]
[1752569665991,1.1172016,679.83,679.45,0.98955123]
[1752569666193,1.1172016,679.82,679.45,0.98955123]
[1752569666397,1.1172016,679.81,679.45,0.98955123]
[1752569666594,1.1172016,679.8,679.45,0.98955123]
[1752569666797,1.1172016,679.79,679.45,0.98955123]
[1752569666998,1.1172016,679.78,679.45,0.98955123]
[1752569667199,1.1172016,679.78,679.32,1.3177846]
[1752569667200,0.99152269,679.85,679.44,0.98955123]
[1752569667400,1.1172019,679.84,679.44,0.98955123]
[1752569668401,1.1172019,679.83,679.44,0.98955123]
[1752569668599,1.1172019,679.82,679.45,0.98955123]
[1752569668804,1.1172019,679.81,679.45,0.98955123]
[1752569669100,1.1172019,679.8,679.45,0.98955123]
[1752569669309,1.1172019,679.79,679.45,0.98955123]
[1752569669508,0.99152269,679.85,679.45,0.98955123]
[1752569669706,1.117202,679.84,679.45,0.98955123]
[1752569669907,1.117202,679.83,679.45,0.98955123]
[1752569670110,1.117202,679.82,679.45,0.98955123]
[1752569670308,1.117202,679.81,679.45,0.98955123]
[1752569670515,1.117202,679.8,679.45,0.98955123]
[1752569670710,1.117202,679.79,679.46,0.98955123]
[1752569670912,1.117202,679.78,679.46,0.98955123]
[1752569671113,0.99152269,679.82,679.46,0.98955123]
[1752569671311,1.11716,679.81,679.43,0.98955123]
[1752569671615,1.11716,679.8,679.43,0.98955123]
[1752569671813,1.11716,679.79,679.43,0.98955123]
[1752569672117,1.11716,679.78,679.44,0.98955123]
[1752569672316,0.99152269,679.83,679.44,0.98955123]
[1752569672317,1.11716,679.77,679.44,0.98955123]
[1752569672513,1.11716,679.76,679.44,0.98955123]
[1752569672713,1.11716,679.75,679.37,0.98955123]
[1752569673216,0.25599247,680.13,679.02,0.25605651]
[1752569673217,0.99152269,679.73,679.31,0.98955123]
[1752569673417,1.1166693,679.72,679.3,0.98955123]
[1752569673618,2.10753037,679.71,679.27,0.98955123]
[1752569673818,1.11600768,679.7,679.27,0.98955123]
[1752569674117,1.11600768,679.7,679.13,1.3177846]
[1752569674118,0.99152269,679.66,679.18,0.98955123]
[1752569674313,1.11600768,679.65,679.18,0.98955123]
[1752569674817,0.99152269,679.61,679.13,0.98955123]
[1752569675018,1.11600768,679.6,679.13,0.98955123]
[1752569675219,1.11600768,679.6,679.1,0.98955123]
[1752569675416,1.11600768,679.59,679.1,0.98955123]
[1752569675618,0.99152269,679.63,679.1,0.98955123]
[1752569675918,1.11472097,679.62,679.1,0.98955123]
[1752569676218,1.11472097,679.62,679.09,0.98955123]
[1752569676415,1.11472097,679.61,679.09,0.98955123]
[1752569676618,0.99152269,679.65,679.09,0.98955123]
[1752569676619,1.11472097,679.6,679.09,0.98955123]
[1752569676816,0.99152269,679.65,679.08,0.98955123]
[1752569677117,1.11427383,679.64,679.08,0.98955123]
[1752569677316,1.11427383,679.64,679.07,0.98955123]
[1752569677516,1.11427383,679.63,679.07,0.98955123]
[1752569677717,1.11427383,679.62,679.07,0.98955123]
[1752569678018,0.99152269,679.66,679.07,0.98955123]
[1752569678217,1.11389164,679.65,679.06,0.98955123]
[1752569678416,1.11389164,679.64,679.06,0.98955123]
[1752569678616,1.11389164,679.63,679.06,0.98955123]
[1752569678814,1.11389164,679.62,679.06,0.98955123]
[1752569679017,0.99152269,679.68,679.06,0.98955123]
[1752569679220,1.1135568,679.67,679.06,0.98955123]
[1752569679517,1.1135568,679.67,679.05,0.98955123]
[1752569679716,1.1135568,679.66,679.05,0.98955123]
[1752569680018,1.1135568,679.65,679.05,0.98955123]
[1752569680217,1.1135568,679.64,679.04,0.98955123]
[1752569680521,1.1135568,679.63,679.04,0.98955123]
[1752569680721,1.1135568,679.62,679.03,0.98955123]
[1752569680922,0.99152269,679.69,679.03,0.98955123]
[1752569681123,1.11299777,679.68,679.02,1.24560774]
[1752569681520,1.11299777,679.67,679.03,0.98955123]
[1752569681724,0.99152269,679.66,679.02,0.25605651]
[1752569681924,1.11277838,679.65,679.02,0.25605651]
[1752569682522,1.11277838,679.64,679.02,0.25605651]
[1752569682724,1.11277838,679.63,679.02,0.25605651]
[1752569682922,1.11277838,679.62,679.02,0.25605651]
[1752569683226,1.11277838,679.61,679.02,0.25605651]
[1752569683420,1.11277838,679.6,679.02,0.25605651]
[1752569683621,1.11277838,679.59,679.02,0.25605651]
[1752569683821,0.99152269,679.68,679.02,0.25605651]
[1752569684022,1.11226247,679.67,679.02,0.25605651]
[1752569684325,1.11226247,679.66,679.02,0.25605651]
[1752569684525,1.11226247,679.65,679.02,0.25605651]
[1752569684822,1.11226247,679.64,679.02,0.25605651]
[1752569685020,0.99152269,679.7,679.02,0.25605651]
[1752569685021,1.11226247,679.63,679.02,0.25605651]
[1752569685226,1.11226247,679.62,679.02,0.25605651]
[1752569685525,1.11226247,679.61,679.02,0.25605651]
[1752569685725,1.11226247,679.6,679.02,0.25605651]
[1752569685921,0.99152269,679.7,679.02,0.25605651]
[1752569686123,1.11173877,679.69,679.02,0.25605651]
[1752569686622,1.11173877,679.68,679.02,0.25605651]
[1752569686824,1.11173877,679.67,679.02,0.25605651]
[1752569687126,1.11173877,679.66,679.02,0.25605651]
[1752569687321,1.11173877,679.65,679.02,0.25605651]
[1752569687524,1.11173877,679.64,679.02,0.25605651]
[1752569687722,1.11173877,679.63,679.02,0.25605651]
[1752569688022,1.11173877,679.62,679.02,0.25605651]
[1752569688226,1.11173877,679.61,679.02,0.25605651]
[1752569688426,1.11173877,679.6,679.02,0.25605651]
[1752569688624,0.99152269,679.72,679.02,0.25605651]
[1752569688825,1.1112304,679.71,679.02,0.25605651]
[1752569690728,0.99152269,679.72,679.02,0.25605651]
[1752569691024,1.11095084,679.71,679.02,0.25605651]
[1752569693430,1.11095084,679.7,679.02,0.25605651]
[1752569693628,1.11095084,679.69,679.02,0.25605651]
[1752569693828,1.11095084,679.68,679.02,0.25605651]
[1752569694027,1.11095084,679.67,679.02,0.25605651]
[1752569694327,1.11095084,679.66,679.02,0.25605651]
[1752569694630,1.11095084,679.65,679.02,0.25605651]
[1752569694831,1.11095084,679.64,679.02,0.25605651]
[1752569695029,0.99152269,679.83,679.02,0.25605651]
[1752569695233,1.11082673,679.82,679.02,0.25605651]
[1752569696932,1.11066879,679.81,679.02,0.25605651]
[1752569697131,1.11066879,679.8,679.02,0.25605651]
[1752569697334,1.11066879,679.79,679.02,0.25605651]
[1752569697533,1.11066879,679.78,679.02,0.25605651]
[1752569697833,1.11066879,679.77,679.02,0.25605651]
[1752569698134,1.11066879,679.76,679.02,0.25605651]
[1752569698330,1.11066879,679.75,679.02,0.25605651]
[1752569698534,1.11066879,679.74,679.02,0.25605651]
[1752569698735,1.11066879,679.73,679.02,0.25605651]
[1752569698935,1.11066879,679.72,679.02,0.25605651]
[1752569699135,1.11066879,679.71,679.02,0.25605651]
[1752569699435,1.11066879,679.7,679.02,0.25605651]
[1752569699635,1.11066879,679.69,679.02,0.25605651]
[1752569699836,0.99152269,679.83,679.02,0.25605651]
[1752569700133,1.11063966,679.82,679.02,0.25605651]
[1752569700834,1.11063943,679.81,679.02,0.25605651]
[1752569701036,1.11063943,679.8,679.02,0.25605651]
[1752569701232,1.11063943,679.79,679.02,0.25605651]
[1752569701432,0.99152269,679.84,679.02,0.25605651]
[1752569701433,1.11063943,679.78,679.02,0.25605651]
[1752569701638,1.11063943,679.77,679.02,0.25605651]
[1752569701839,1.11063943,679.76,679.02,0.25605651]
[1752569702037,1.11063943,679.75,679.02,0.25605651]
[1752569702239,1.11063943,679.74,679.02,0.25605651]
[1752569702437,1.11063943,679.73,679.02,0.25605651]
[1752569702636,1.11063943,679.72,679.02,0.25605651]
[1752569702835,1.11063943,679.71,679.02,0.25605651]
[1752569703037,1.11063943,679.7,679.02,0.25605651]
[1752569703240,1.11063943,679.69,679.02,0.25605651]
[1752569703540,1.11063943,679.68,679.02,0.25605651]
[1752569703840,1.11063943,679.67,679.02,0.25605651]
[1752569704142,1.11063943,679.66,679.02,0.25605651]
[1752569704338,1.11063943,679.65,679.02,0.25605651]
[1752569704540,1.11063943,679.64,679.02,0.25605651]
[1752569704736,1.11063943,679.63,679.02,0.25605651]
[1752569704935,0.99152269,679.76,679.02,0.25605651]
[1752569704936,1.11063943,679.62,679.02,0.25605651]
[1752569705140,1.11063943,679.61,679.02,0.25605651]
[1752569705340,0.99152269,679.78,679.02,0.25605651]
[1752569705538,1.11059791,679.77,679.02,0.25605651]
[1752569706338,1.11059791,679.76,679.02,0.25605651]
[1752569706540,1.11059791,679.75,679.02,0.25605651]
[1752569706738,1.11059791,679.74,679.02,0.25605651]
[1752569706938,1.11059791,679.73,679.02,0.25605651]
[1752569707137,1.11059791,679.72,679.02,0.25605651]
[1752569707339,1.11059791,679.71,679.02,0.25605651]
[1752569707641,1.11059791,679.7,679.02,0.25605651]
[1752569707842,1.11059791,679.69,679.02,0.25605651]
[1752569708042,0.99152269,679.81,679.02,0.25605651]
[1752569708242,1.11065496,679.8,679.02,0.25605651]
[1752569709835,1.11065496,679.79,679.02,0.25605651]
[1752569710042,1.11065496,679.78,679.02,0.25605651]
[1752569710236,1.11065496,679.77,679.02,0.25605651]
[1752569710437,1.11065496,679.76,679.02,0.25605651]
[1752569710738,1.11065496,679.75,679.02,0.25605651]
[1752569710937,1.11065496,679.74,679.02,0.25605651]
[1752569711141,1.11065496,679.73,679.02,0.25605651]
[1752569711441,1.11065496,679.72,679.02,0.25605651]
[1752569711641,1.11065496,679.71,679.02,0.25605651]
[1752569711836,1.11065496,679.7,679.02,0.25605651]
[1752569712041,1.11065496,679.69,679.02,0.25605651]
[1752569712238,1.11065496,679.68,679.02,0.25605651]
[1752569712538,1.11065496,679.67,679.02,0.25605651]
[1752569712737,0.99152269,679.84,679.02,0.25605651]
[1752569712738,1.11065496,679.66,679.02,0.25605651]
[1752569712937,1.11065496,679.65,679.02,0.25605651]
[1752569713139,1.11065496,679.64,679.02,0.25605651]
[1752569713339,1.11065496,679.63,679.02,0.25605651]
[1752569713543,1.11065496,679.62,679.02,0.25605651]
[1752569713839,1.11065496,679.61,679.02,0.25605651]
[1752569714045,0.99152269,679.84,679.02,0.25605651]
[1752569714344,0.99152269,679.77,679.02,0.25605651]
[1752569714542,2.10249854,679.76,679.02,0.25605651]
[1752569714740,1.11097585,679.75,679.02,0.25605651]
[1752569715239,2.10249854,679.75,679.02,0.25605651]
[1752569715443,1.11097585,679.74,679.02,0.25605651]
[1752569717342,1.1113311,679.73,679.02,0.25605651]
[1752569717645,1.1113311,679.72,679.02,0.25605651]
[1752569717843,1.1113311,679.71,679.02,0.25605651]
[1752569718044,0.99152269,679.75,679.02,0.25605651]
[1752569718045,1.1113311,679.7,679.02,0.25605651]
[1752569718242,1.1113311,679.69,679.02,0.25605651]
[1752569718544,1.1113311,679.68,679.02,0.25605651]
[1752569718745,1.1113311,679.67,679.02,0.25605651]
[1752569718942,1.1113311,679.66,679.02,0.25605651]
[1752569719145,1.1113311,679.65,679.02,0.25605651]
[1752569719448,1.1113311,679.64,679.02,0.25605651]
[1752569719644,1.1113311,679.63,679.02,0.25605651]
[1752569719845,1.1113311,679.62,679.02,0.25605651]
[1752569720143,0.99152269,679.69,679.02,0.25605651]
[1752569720144,1.1113311,679.61,679.02,0.25605651]
[1752569720440,1.1113311,679.6,679.02,0.25605651]
[1752569720642,1.1113311,679.59,679.02,0.25605651]
[1752569720846,1.1113311,679.58,679.02,0.25605651]
[1752569721144,1.1113311,679.57,679.02,0.25605651]
[1752569721345,1.1113311,679.56,679.02,0.25605651]
[1752569721645,1.1113311,679.55,679.02,0.25605651]
[1752569721841,1.1113311,679.54,679.02,0.25605651]
[1752569722046,0.99152269,679.67,679.02,0.25605651]
[1752569722242,2.10319139,679.66,679.02,0.25605651]
[1752569722545,1.1116687,679.65,679.02,0.25605651]
[1752569722743,1.1116687,679.64,679.02,0.25605651]
[1752569722942,1.1116687,679.63,679.02,0.25605651]
[1752569723146,1.1116687,679.62,679.02,0.25605651]
[1752569723349,1.1116687,679.61,679.02,0.25605651]
[1752569723546,1.1116687,679.6,679.02,0.25605651]
[1752569723745,1.1116687,679.59,679.02,0.25605651]
[1752569723945,1.1116687,679.58,679.02,0.25605651]
[1752569724246,1.1116687,679.57,679.02,0.25605651]
[1752569724447,1.1116687,679.56,679.02,0.25605651]
[1752569724644,1.1116687,679.55,679.02,0.25605651]
[1752569724845,1.1116687,679.54,679.02,0.25605651]
[1752569725144,0.99152269,679.64,679.02,0.25605651]
[1752569725349,1.1125328,679.63,679.02,0.25605651]
[1752569726349,0.99152269,679.63,679.02,0.25605651]
[1752569726551,1.1127864,679.62,679.02,0.25605651]
[1752569727353,2.10430909,679.62,679.02,0.25605651]
[1752569727552,1.1127864,679.61,679.02,0.25605651]
[1752569727848,1.1127864,679.6,679.02,0.25605651]
[1752569728051,1.1127864,679.59,679.02,0.25605651]
[1752569728351,1.1127864,679.58,679.02,0.25605651]
[1752569728549,1.1127864,679.57,679.02,0.25605651]
[1752569728754,1.1127864,679.56,679.02,0.25605651]
[1752569728948,1.1127864,679.55,679.02,0.25605651]
[1752569729149,1.1127864,679.54,679.02,0.25605651]
[1752569729347,1.1127864,679.53,679.02,0.25605651]
[1752569729548,1.1127864,679.52,679.02,0.25605651]
[1752569729849,0.99152269,679.62,679.02,0.25605651]
[1752569730048,1.1142548,679.61,679.02,0.25605651]
[1752569730352,0.99152269,679.59,679.02,0.25605651]
[1752569730648,1.1142548,679.58,678.96,0.98955123]
[1752569730848,0.99152269,679.59,678.96,0.98955123]
[1752569730849,1.1142548,679.57,678.96,0.98955123]
[1752569731053,1.1142548,679.56,678.96,0.98955123]
[1752569731252,1.1142548,679.55,678.98,0.98955123]
[1752569731552,1.1142548,679.54,678.98,0.98955123]
[1752569731752,1.1142548,679.53,678.98,0.98955123]
[1752569731950,1.1142548,679.52,678.98,0.98955123]
[1752569732252,1.1142548,679.51,678.94,0.98955123]
[1752569732449,1.1142548,679.5,678.96,0.98955123]
[1752569732651,1.1142548,679.49,678.96,0.98955123]
[1752569732851,0.99152269,679.6,678.96,0.98955123]
[1752569732852,1.1142548,679.48,678.96,0.98955123]
[1752569733051,1.1142548,679.47,678.96,0.98955123]
[1752569733247,1.1142548,679.46,678.97,0.98955123]
[1752569733447,1.1142548,679.45,678.97,0.98955123]
[1752569733653,0.99152269,679.59,678.97,0.98955123]
[1752569733854,1.1157838,679.58,678.97,0.98955123]
[1752569734252,1.1157838,679.58,678.98,0.98955123]
[1752569735353,0.99152269,679.59,678.98,0.98955123]
[1752569735555,1.1158641,679.58,678.98,0.98955123]
[1752569736150,0.99152269,679.53,678.94,0.98955123]
[1752569736350,1.1158641,679.52,678.94,0.98955123]
[1752569736650,1.1158641,679.51,678.94,0.98955123]
[1752569736850,1.1158641,679.5,678.94,0.98955123]
[1752569737053,1.1158641,679.49,678.94,0.98955123]
[1752569737350,1.1158641,679.48,678.9,0.98955123]
[1752569737554,1.1158641,679.47,678.9,0.98955123]
[1752569737754,1.1158641,679.46,678.9,0.98955123]
[1752569737954,1.1158641,679.45,678.9,0.98955123]
[1752569738255,1.1158641,679.44,678.9,0.98955123]
[1752569738554,1.1158641,679.43,678.9,0.98955123]
[1752569738751,1.1158641,679.42,678.9,0.98955123]
[1752569738950,0.99152269,679.51,678.9,0.98955123]
[1752569739150,1.1156708,679.5,678.9,0.98955123]
[1752569739354,2.10719349,679.5,678.9,0.98955123]
[1752569739654,1.1156708,679.49,678.89,0.98955123]
[1752569739854,1.1156708,679.48,678.89,0.98955123]
[1752569740155,1.1156708,679.47,678.9,0.98955123]
[1752569740352,1.1156708,679.46,678.89,0.98955123]
[1752569740556,1.1156708,679.45,678.89,0.98955123]
[1752569740751,1.1156708,679.44,678.89,0.98955123]
[1752569741051,0.99152269,679.51,678.89,0.98955123]
[1752569741052,1.1156708,679.43,678.89,0.98955123]
[1752569741355,1.1156708,679.42,678.89,0.98955123]
[1752569741554,0.99152269,679.51,678.89,0.98955123]
[1752569741752,1.1154896,679.5,678.89,0.98955123]
[1752569741950,1.1154896,679.5,678.91,0.98955123]
[1752569741951,0.99152269,679.48,678.91,0.98955123]
[1752569742156,0.99152269,679.46,678.92,0.98955123]
[1752569742457,2.10701229,679.45,678.93,0.98955123]
[1752569742656,1.1154896,679.44,678.93,0.98955123]
[1752569742857,1.1154896,679.44,678.94,0.98955123]
[1752569742858,0.99152269,679.43,678.94,0.98955123]
[1752569743052,1.1154896,679.42,678.94,0.98955123]
[1752569744359,1.1153706,679.41,678.93,0.98955123]
[1752569744658,1.1153706,679.4,678.93,0.98955123]
[1752569744856,1.1153706,679.39,678.93,0.98955123]
[1752569745060,0.99152269,679.45,678.93,0.98955123]
[1752569745261,1.1152606,679.44,678.93,0.98955123]
[1752569746368,1.1152606,679.44,678.92,0.98955123]
[1752569747169,1.1152606,679.43,678.92,0.98955123]
[1752569747468,1.3201562,679.59,678.92,0.98955123]
[1752569747469,1.115194,679.42,678.92,0.98955123]
[1752569747663,1.115194,679.41,678.92,0.98955123]
[1752569747867,1.115194,679.4,678.91,0.98955123]
[1752569748069,0.99152269,679.47,678.91,0.98955123]
[1752569748269,1.1151561,679.46,678.91,0.98955123]
[1752569748768,1.1151561,679.46,678.85,0.25616394]
[1752569748769,1.1151561,679.46,678.9,0.98955123]
[1752569748965,1.1151561,679.45,678.9,0.98955123]
[1752569749170,1.1151561,679.44,678.9,0.98955123]
[1752569749372,1.1151561,679.43,678.9,0.98955123]
[1752569749567,1.1151561,679.42,678.9,0.98955123]
[1752569749770,1.1151561,679.41,678.9,0.98955123]
[1752569749970,0.99152269,679.48,678.9,0.98955123]
[1752569750172,1.1150218,679.47,678.9,0.98955123]
[1752569750373,1.1150083,679.46,678.9,0.98955123]
[1752569750572,1.1150083,679.45,678.9,0.98955123]
[1752569750769,1.1150083,679.44,678.9,0.98955123]
[1752569751069,1.1150083,679.43,678.9,0.98955123]
[1752569751274,1.1150083,679.42,678.9,0.98955123]
[1752569751470,1.1150083,679.41,678.9,0.98955123]
[1752569751670,0.99152269,679.48,678.9,0.98955123]
[1752569751874,1.1149486,679.47,678.9,0.98955123]
[1752569753172,0.99152269,679.48,678.9,0.98955123]
[1752569753371,1.1148803,679.47,678.9,0.98955123]
[1752569753976,1.1148613,679.46,678.9,0.98955123]
[1752569754176,1.1148613,679.45,678.91,0.98955123]
[1752569754474,1.1148613,679.44,678.91,0.98955123]
[1752569754772,1.1148613,679.43,678.9,0.98955123]
[1752569754976,1.1148613,679.42,678.9,0.98955123]
[1752569755277,0.99152269,679.49,678.9,0.98955123]
[1752569755476,1.9802344,679.8,678.85,0.25616394]
[1752569755477,1.11487,679.48,678.89,0.98955123]
[1752569755677,1.11487,679.47,678.89,0.98955123]
[1752569755876,1.11487,679.46,678.89,0.98955123]
[1752569756076,1.11487,679.45,678.89,0.98955123]
[1752569756275,1.11487,679.44,678.89,0.98955123]
[1752569756477,1.11487,679.43,678.89,0.98955123]
[1752569756773,1.11487,679.42,678.89,0.98955123]
[1752569756976,0.99152269,679.49,678.9,0.98955123]
[1752569757172,1.1148826,679.48,678.9,0.98955123]
[1752569758575,0.99152269,679.47,678.91,0.98955123]
[1752569758777,1.1148826,679.46,678.91,0.98955123]
[1752569758978,1.1148826,679.45,678.91,0.98955123]
[1752569759278,1.1148826,679.44,678.91,0.98955123]
[1752569759574,1.1148826,679.43,678.91,0.98955123]
[1752569759774,1.1148826,679.42,678.91,0.98955123]
[1752569759974,1.1148826,679.41,678.91,0.98955123]
[1752569760179,1.1148826,679.4,678.91,0.98955123]
[1752569760380,0.99152269,679.47,678.91,0.98955123]
[1752569760679,1.1147011,679.46,678.91,0.98955123]
[1752569761379,1.1147011,679.45,678.91,0.98955123]
[1752569761582,1.1147011,679.44,678.9,0.98955123]
[1752569761777,1.1147011,679.43,678.91,0.98955123]
[1752569761976,1.1147337,679.42,678.91,0.98955123]
[1752569762277,1.1147337,679.41,678.91,0.98955123]
[1752569762477,1.1147337,679.4,678.91,0.98955123]
[1752569762676,0.99152269,679.47,678.91,0.98955123]
[1752569762877,1.1147729,679.46,678.91,0.98955123]
[1752569764680,0.99152269,679.44,678.93,0.98955123]
[1752569764875,1.1147729,679.43,678.93,0.98955123]
[1752569765079,0.99152269,679.44,678.93,0.98955123]
[1752569765080,1.1147729,679.42,678.93,0.98955123]
[1752569765277,1.1147729,679.41,678.94,0.98955123]
[1752569765481,1.1147729,679.4,678.94,0.98955123]
[1752569765677,1.1147729,679.39,678.94,0.98955123]
[1752569766282,0.99152269,679.42,678.94,0.98955123]
[1752569768382,0.99152269,679.42,678.95,0.98955123]
[1752569768583,0.99152269,679.43,678.95,0.98955123]
[1752569769482,0.99152269,679.42,678.95,0.98955123]
[1752569769980,1.115195,679.41,678.95,0.98955123]
[1752569771081,1.115195,679.4,678.94,0.98955123]
[1752569771380,1.115195,679.39,678.95,0.98955123]
[1752569771584,1.115195,679.38,678.94,0.98955123]
[1752569771781,0.99152269,679.44,678.94,0.98955123]
[1752569771986,1.1152305,679.43,678.94,0.98955123]
[1752569772487,1.1152513,679.42,678.94,0.98955123]
[1752569772688,1.1152513,679.41,678.94,0.98955123]
[1752569772887,1.1152513,679.4,678.94,0.98955123]
[1752569773187,0.99152269,679.48,678.91,0.98955123]
[1752569773383,1.1152694,679.47,678.91,0.98955123]
[1752569774383,1.1152694,679.46,678.91,0.98955123]
[1752569774687,1.1152694,679.45,678.91,0.98955123]
[1752569774989,1.1152694,679.44,678.91,0.98955123]
[1752569775187,1.1152694,679.43,678.91,0.98955123]
[1752569775390,1.1152694,679.42,678.91,0.98955123]
[1752569775586,1.1152694,679.41,678.91,0.98955123]
[1752569775791,0.99152269,679.49,678.91,0.98955123]
[1752569775991,1.1152221,679.48,678.91,0.98955123]
[1752569776691,0.99152269,679.46,678.93,0.98955123]
[1752569776889,1.1152221,679.45,678.93,0.98955123]
[1752569777089,1.1152221,679.45,678.94,0.98955123]
[1752569779490,2.10674479,679.45,678.94,0.98955123]
[1752569779693,1.1152221,679.44,678.95,0.98955123]
[1752569779990,1.1152221,679.43,678.95,0.98955123]
[1752569780294,1.1152221,679.42,678.95,0.98955123]
[1752569780495,1.1152221,679.41,678.93,0.98955123]
[1752569780694,0.99152269,679.49,678.95,0.98955123]
[1752569780892,1.1156543,679.48,678.8,1.3177846]